Cogmind - Beta 12 @@@ ROGUE MODE // 2023.11.15 @ 11:13:23 Player: ZLD1 Result: Self-destructed Performance ------------- Evolutions (1) 500 Regions Visited (2) 400 Robots Destroyed (9) 45 Value Destroyed (248) 248 Prototype IDs (0) 0 Alien Tech Used (0) 0 Bonus (0) 0 TOTAL SCORE: 1193 Bonus ------- None Cogmind --------- Core Integrity 186/400 Matter 202/300 Energy 250/250 System Corruption 2% Temperature Cool (0) Movement Core (200) Ox3 Location -9/Materials Parts ------- > --- POWER (1) -------- Ion Engine > --- PROPULSION (2) --- (None) > --- UTILITY (3) ------ Small Storage Unit Signal Interpreter > --- WEAPON (3) ------- (None) > --- INVENTORY (8) ---- Improved Ion Engine Faulty Heavy Ion Engine Heat Sink Peak State ------------ > --- POWER ------------ Light Ion Engine > --- PROPULSION ------- Aluminum Leg Aluminum Leg > --- UTILITY ---------- Small Storage Unit > --- WEAPON ----------- EM Pulse Gun Assault Rifle > --- INVENTORY -------- Ion Engine [Rating: 6] Favorites ----------- Power Ion Engine Engine Ion Engine Propulsion Aluminum Leg Leg Aluminum Leg Utility Small Storage Unit Storage Small Storage Unit Processor Signal Interpreter Weapon Assault Rifle Energy Gun EM Pulse Gun Ballistic Gun Assault Rifle Launcher Grenade Launcher Build | -11 -10 -9 ------- Run | Jun Mat Mat Slots Evolved 2 | . . 2 Power . | . . . Propulsion . | . . . Utility 1 | . . 1 Weapon 1 | . . 1 Parts Attached 10 | 6 . 4 Power 2 | 1 . 1 Engine 2 | 1 . 1 Core . | . . . Reactor . | . . . Propulsion 3 | 2 . 1 Treads . | . . . Leg 3 | 2 . 1 Wheel . | . . . Hover . | . . . Flight . | . . . Utility 2 | 1 . 1 Device . | . . . Storage 1 | 1 . . Processor 1 | . . 1 Hackware . | . . . Protection . | . . . Artifact . | . . . Weapon 3 | 2 . 1 Energy Gun 1 | 1 . . Energy Cannon . | . . . Ballistic Gun 1 | 1 . . Ballistic Cannon . | . . . Launcher 1 | . . 1 Special Weapon . | . . . Impact Weapon . | . . . Slashing Weapon . | . . . Piercing Weapon . | . . . Special Melee Weapon . | . . . Unidentified Prototypes . | . . . Parts Lost 7 | . 1 6 Power 1 | . 1 . Propulsion 3 | . . 3 Utility . | . . . Weapon 3 | . . 3 Highest Loss Streak 5 | . 1 5 To Critical Strikes 1 | . . 1 Average Slot Usage (%) 60 | . 79 46 Engine 8 | . 8 8 Leg 16 | . 28 7 Storage 12 | . 14 11 Processor 4 | . . 8 Energy Gun 7 | . 14 1 Ballistic Gun 8 | . 14 4 Launcher 3 | . . 5 Naked Turns . | . . . Heaviest Build 13 | 12 12 13 Greatest Support 20 | 20 20 20 Greatest Overweight (x) 4 | . . 4 Average Overweight (x) . | . . 1 Largest Inventory Capacity 8 | 8 8 8 Average Capacity 7 | 6 8 8 Most Carried 5 | 5 3 4 Average Carried 2 | 1 2 2 Final Capacity 8 | 8 8 8 Final Carried 3 | 1 3 3 Class Distribution -------------------- 100% | Mutant Dominant Class ---------------- Mutant | -10/Materials Mutant | -9/Materials Resources | -11 -10 -9 ----------- Run | Jun Mat Mat Matter Collected 356 | 206 97 53 Remotely . | . . . Salvage Created 250 | . 148 102 Parts 14 | . 6 8 Haulers Intercepted . | . . . Recyclers Shooed . | . . . Parts Field Recycled . | . . . Retrieved Matter . | . . . Parts Self-Destructed . | . . . Prevented . | . . . Kills | -11 -10 -9 ------- Run | Jun Mat Mat Combat Hostiles Destroyed 8 | . 5 3 Guns 6 | . 5 1 AOE 2 | . . 2 Classes Destroyed 4 | . 2 2 Watcher 1 | . . 1 Swarmer 3 | . 3 . Grunt 3 | . 2 1 Sentry 2 | . . 2 Best Kill Streak 5 | . 5 2 Combat Bots Only 5 | . 5 2 Max Kills in Single Turn 1 | . 1 1 Gunslinging . | . . . Exploded 1 | . . 1 Melee . | . . . Uniques/NPCs Destroyed . | . . . Combat | -11 -10 -9 -------- Run | Jun Mat Mat Damage Taken 874 | . 261 613 Core 269 | . 55 214 Absorbed by Shields . | . . . Core Remaining (%) 89 | 100 78 . Volleys Fired 34 | 1 15 18 Largest 2 | 2 2 2 Hottest 60 | 60 60 60 Shots Fired 54 | 2 30 22 Gun 43 | 2 30 11 Cannon . | . . . Launcher 11 | . . 11 Special . | . . . Kinetic 23 | 1 15 7 Thermal . | . . . Explosive 11 | . . 11 Electromagnetic 20 | 1 15 4 Robot Hit Streak 8 | . 5 8 Robot Miss Streak 3 | . 3 1 Penetration Max . | . . . Secondary Targets 3 | . 2 1 Max Gunslinging Chain 1 | . 1 1 Shots Hit Robots 30 | . 17 13 Core Hits 12 | . 6 6 Critical Kills . | . . . Critical Parts Destroyed . | . . . Critical Strikes . | . . . Melee Attacks . | . . . Impact . | . . . Slashing . | . . . Piercing . | . . . Sneak Attacks . | . . . Combat Hostiles . | . . . Follow-up Attacks . | . . . Damage Inflicted 629 | . 237 392 Guns 362 | . 237 125 Cannons . | . . . Explosions 267 | . . 267 Melee . | . . . Ramming . | . . . Kinetic 191 | . 102 89 Thermal . | . . . Explosive 267 | . . 267 Electromagnetic 171 | . 135 36 Impact . | . . . Slashing . | . . . Piercing . | . . . Highest Corruption 2 | . . 2 Average Corruption 1 | . . 1 Corruption Purged . | . . . Corruption Blocked . | . . . Overload Shots . | . . . Overflow Damage 3 | . . 3 Projectiles . | . . . Explosions 3 | . . 3 Melee . | . . . Knockbacks . | . . . Impact . | . . . Kinetic . | . . . Secondary . | . . . Self-Inflicted Damage . | . . . Shots . | . . . Rammed . | . . . Targets Rammed . | . . . Kicked . | . . . Crushed . | . . . Highest Temperature 44 | . 44 19 Average Temperature 21 | . 27 7 Received Heat Transfer 300 | . 90 210 Siege Activations . | . . . Robots Corrupted . | . . . Combat Hostiles . | . . . Parts Fried . | . . . Impact Corruptions . | . . . Robots Melted . | . . . Combat Hostiles . | . . . Parts Melted . | . . . Heat Transferred . | . . . Parts Sabotaged . | . . . Parts Stolen . | . . . Parts Stripped . | . . . Power Chain Reactions . | . . . Missiles Intercepted . | . . . Alert | -11 -10 -9 ------- Run | Jun Mat Mat Peak Influence 197 | . 170 197 Initial 71 | . . 71 Average 84 | . 53 128 Maximum Alert Level . | . . . Low Security (%) 100 | 100 100 100 Level 1 . | . . . Level 2 . | . . . Level 3 . | . . . Level 4 . | . . . Level 5 . | . . . High Security . | . . . Max Security . | . . . Squads Dispatched 2 | . 1 1 Investigation . | . . . Extermination . | . . . Reinforcement 2 | . 1 1 Assault . | . . . Garrison . | . . . Intercept . | . . . Searches Triggered . | . . . Construction Impeded . | . . . Haulers Reinforced . | . . . Active Scanning Responses . | . . . Cargo Convoy Interrupts . | . . . Stealth | -11 -10 -9 --------- Run | Jun Mat Mat Distress Signals 2 | . . 2 Communications Jammed . | . . . Distress Signals . | . . . Times Spotted 16 | . 8 8 Peak Tracking Total 4 | . 3 4 Tactical Retreats 2 | . 1 1 Traps | -11 -10 -9 ------- Run | Jun Mat Mat Traps Triggered 2 | . . 2 Indirectly . | . . . Trap Hack Attempts . | . . . Triggered . | . . . Disarmed . | . . . Reprogrammed . | . . . Reused . | . . . Traps Extracted . | . . . Installed . | . . . Triggered . | . . . Machines | -11 -10 -9 ---------- Run | Jun Mat Mat Machines Disabled 1 | . 1 . Max in Single Turn 1 | . 1 . Machines Repaired . | . . . Machines Sabotaged . | . . . Overloaded Fab Kills . | . . . Hacking | -11 -10 -9 --------- Run | Jun Mat Mat Machines Accessed . | . . . Terminals . | . . . Fabricators . | . . . Repair Stations . | . . . Recycling Units . | . . . Scanalyzers . | . . . Garrison Access . | . . . Total Hacks . | . . . Successful . | . . . Failed . | . . . Catastrophic . | . . . Database Lockouts . | . . . Manual . | . . . Terminals . | . . . Fabricators . | . . . Repair Stations . | . . . Recycling Units . | . . . Scanalyzers . | . . . Garrison Access . | . . . Terminal Hacks . | . . . Fabricator Hacks . | . . . Repair Station Hacks . | . . . Recycling Unit Hacks . | . . . Scanalyzer . | . . . Garrison Access Hacks . | . . . Unauthorized Hacks . | . . . Terminals . | . . . Fabricators . | . . . Repair Stations . | . . . Recycling Units . | . . . Scanalyzers . | . . . Garrison Access . | . . . Data Cores Recovered . | . . . Used . | . . . Hacking Detections . | . . . Full Trace Events . | . . . Feedback Events . | . . . Feedback Blocked . | . . . Robot Schematics Acquired . | . . . Robots Built . | . . . Authchips . | . . . Time . | . . . Total Robot Build Rating . | . . . Part Schematics Acquired . | . . . Parts Built . | . . . Authchips . | . . . Time . | . . . Total Part Build Rating . | . . . Parts Repaired . | . . . Time . | . . . Parts Recycled . | . . . Recycled Matter . | . . . Retrieved Matter . | . . . Retrieved Components . | . . . Parts Scanalyzed . | . . . Part Schematics Acquired . | . . . Parts Damaged . | . . . Bothacking | -11 -10 -9 ------------ Run | Jun Mat Mat Used RIF Installer . | . . . Robots Hacked . | . . . Non-combat . | . . . Combat . | . . . Robot Hacks Applied . | . . . Relay Couplers Released . | . . . Fabnet Peak Effective % . | . . . Robots Rewired . | . . . Allies Hacked . | . . . Hacks Repelled . | . . . Allies | -11 -10 -9 -------- Run | Jun Mat Mat Total Allies . | . . . Largest Group . | . . . Highest-Rated Group . | . . . Highest-Rated Ally . | . . . Total Orders . | . . . Ally Attacks . | . . . Total Damage . | . . . Kills . | . . . Allies Corrupted . | . . . Allies Melted . | . . . Intel | -11 -10 -9 ------- Run | Jun Mat Mat Robot Analysis Total . | . . . Derelict Logs Recovered . | . . . Drone Launches . | . . . Drone Recoveries . | . . . Exploration | -11 -10 -9 ------------- Run | Jun Mat Mat Turns Passed 452 | 56 166 230 Spaces Moved 243 | 43 100 100 Core 57 | 17 . 40 Treads . | . . . Legs 186 | 26 100 60 Wheels . | . . . Hover . | . . . Flight . | . . . Fastest Speed 50 | 50 120 120 Average Speed 140 | 92 120 182 Slowest Speed 250 | 120 120 250 Overloaded Moves . | . . . Propulsion Burnouts . | . . . Robots Hopped . | . . . Cave-ins Triggered . | . . . Exploration Rate (%) 16 | 4 34 11 Regions Visited 2 Branch Regions . Pre-discovered Areas . | . . . Known Exits Taken . | . . . Unknown Exits Taken 2 | 1 1 . Scrap Searched . | . . . Spaces Dug . | . . . Terrain Destroyed 52 | . . 52 Melee . | . . . Projectile . | . . . AOE 52 | . . 52 Terrain Rammed . | . . . Walls Destroyed . | . . . Machines Disabled . | . . . Actions | -11 -10 -9 --------- Run | Jun Mat Mat Total 300 | 58 116 126 Wait . | . . . Move 241 | 42 99 100 Hop . | . . . Pick Up 14 | 8 2 4 Fast Attach . | . . . Attach 10 | 6 . 4 Detach . | . . . Swap . | . . . Drop 1 | 1 . . Fire 34 | 1 15 18 Melee . | . . . Ram . | . . . Kick . | . . . Crush . | . . . Escape Stasis . | . . . Rewire . | . . . Trap . | . . . Miscellaneous . | . . . Route ------- -11/Junkyard -10/Materials -9/Materials History --------- Turn | Location | Event 7 | -11/Junkyard | Discovered new exit (range 15) 57 | -11/Junkyard | Entered Materials 205 | -10/Materials | Discovered new exit (range 16) 223 | -10/Materials | Entered another Materials area 223 | -9/Materials | Evolved 2 slots: Utility x1, Weapon x1 303 | -9/Materials | Build established: Mutant 365 | -9/Materials | Lost 5 parts (3n2w) 439 | -9/Materials | Core integrity fell below 50% 453 | -9/Materials | Self-destructed Last Messages --------------- 00387_ U-05 Engineer lays Concrete. 00389_ The unstable cave ceiling collapses. 00389_ U-05 Engineer lays Concrete. 00401_ U-05 Engineer builds a Wall. 00401_ Acquired Prototype Engine. 00402_ The unstable cave ceiling collapses. 00403_ U-05 Engineer builds a Wall. 00422_ U-05 Engineer lays Concrete. 00424_ The unstable cave ceiling collapses. 00424_ U-05 Engineer lays Concrete. 00426_ U-05 Engineer builds a Wall. 00435_ U-05 Engineer lays Concrete. 00436_ U-05 Engineer builds a Wall. 00437_ Grenade Launcher destroyed. 00443_ Triggered Shock Trap. 00443_ The floor emits a surge of raw power. 00443_ System corrupted (+1). 00445_ Triggered Shock Trap. 00445_ The floor emits a surge of raw power. 00445_ System corrupted (+1). Map ----- +----------------------------------------------------+ | | | | | | | | | | | | | | | | | | | | | | | | | ?????????????????????????????????? | | ?????????????????????????????????? | | ?????????????????????????????????? | | ?????????????????????????????????? | | ?????????????????????????????????? | | ?????????????????????????????????? | | ?????????????????????????????????? | | ??????????###????????????????????? | | ??????#### !##???????????????????? | | ??????# !#???????????????????? | | ??????# !#??????????????###?#? | | ??????+ !#??????????????# ? ? | | ??????# !#??????????????# "? | | ??????# @ !#???????????????# "" | | ??????# ####???????????????# "" | | ??????# #??????????????????# | | ??????# #??????????????????# "" | | ??????#g #????????####??????# "" | | ?????## ##???##### #####??# "" | | ?????# ##### [ # ##### | | ?????# ## ## ######+ | | ?????# % | | ?????# ##### # | | ?????##+###???###### | | ????????????????## # ###### | | ???????????????## # #####??? | | ???????????????## # #??????? | | ????????????###### # ##?????? | | ????????????# | | ????????????# # ###? | | ????????????#""" # #??? | | ????????????#""" + #####+##??? | | ????????????#""" # #????? ??? | | ????????????# # #??????? ? | | ????????????######## #???????? ? | | ???????????????????# #?????????? | | ???????????????????# #?????????? | | ???????????????????# #?????????? | +----------------------------------------------------+ Best States ------------- Heat Dissipation 28 Energy Generation 10 Energy Capacity 250 Matter Stores 300 Matter Capacity 300 Sight Range 16 Terrain Scan Density 10 Evasion (%) 55 Item Schematics ----------------- None Robot Schematics ------------------ None Fabricated ------------ Nothing Alien Tech Used ----------------- None Achievements -------------- None Challenges ------------ None Game ------ Seed BackupCloakMicroactuators Manual? 0 Play Time 00:05:58 Cumulative 54.4 hours Start 2023.11.15 @ 11:08:39 End 2023.11.15 @ 11:13:23 Sessions 1 Manual Loads 0 Difficulty Rogue Special Mode None Game No. 120 Rogue 120 Adventurer 0 Explorer 0 Win Type - Total 0 Types 0/0/0/0/0/0/0/0/0 Lore% 26 Gallery% 43 Achievement% 31 Wizard Run 0 Options --------- ASCII 0 Keyboard 0 Movement Mouse Keybinds 0 Fullscreen 1 Font 24/Smallcaps Map View 76x50 Tactical HUD 1 Map Filters NONE Filters NONE Steam 1 RUN: 1b687671-86ae-46df-b889-f940d415de25